bitfinex-derivatives/quotes_ETHF0:USTF0_20250905
["timestamp","ask_amount","ask_price","bid_price","bid_amount"]
[1757084649035,1.5329,4265.3,4264.9,3.2078]
[1757084649235,4.7407,4265.3,4264.5,0.268]
[1757084649831,1.5329,4265.3,4264.5,0.268]
[1757084650031,3.2078,4265.1,4264.5,0.268]
[1757084650226,1.5329,4264.5,4263.1,3.2078]
[1757084650729,1.5329,4264.5,4263.2,0.268]
[1757084651337,4.7407,4264.1,4263.2,3.4758]
[1757084651536,1.5329,4263.4,4263.0,1.5605]
[1757084651726,1.5329,4263.4,4262.6,3.2078]
[1757084651926,3.2078,4263.5,4263.1,0.268]
[1757084651927,1.5329,4263.2,4263.1,0.268]
[1757084652735,1.5329,4263.2,4262.2,32.357]
[1757084652941,1.5329,4263.2,4262.5,0.268]
[1757084653129,1.5329,4262.6,4262.5,0.268]
[1757084653329,1.5329,4262.6,4261.2,1.5605]
[1757084653330,0.5925,4262.4,4261.2,1.5605]
[1757084653534,4.7407,4262.1,4261.4,0.268]
[1757084654142,4.7407,4261.9,4261.5,0.268]
[1757084654339,3.2078,4261.9,4261.1,1.5605]
[1757084654535,0.5925,4261.8,4261.1,0.268]
[1757084655038,1.5329,4261.4,4260.6,3.2078]
[1757084655238,4.7407,4261.4,4260.8,0.268]
[1757084655538,3.2078,4261.4,4261.3,2.33910692]
[1757084655745,1.5329,4262.1,4261.3,2.33910692]
[1757084656041,3.2078,4262.0,4261.3,2.33910692]
[1757084656641,1.5329,4262.8,4261.6,4.7683]
[1757084656940,0.5925,4263.0,4261.3,2.33910692]
[1757084656941,1.5329,4263.5,4262.2,3.2078]
[1757084657146,1.5329,4263.5,4262.8,3.2078]
[1757084657343,1.5329,4263.5,4262.9,0.267]
[1757084657531,0.5925,4264.2,4262.9,1.8275]
[1757084657532,2.1254,4264.2,4262.9,1.8275]
[1757084657938,1.5329,4264.2,4263.5,3.2078]
[1757084658241,4.7037,4264.7,4263.6,0.267]
[1757084659136,1.4959,4264.7,4264.1,3.2078]
[1757084659442,1.4959,4265.0,4264.3,3.2078]
[1757084659744,1.4959,4265.0,4264.4,0.267]
[1757084660642,1.4959,4265.0,4264.4,3.4748]
[1757084660946,1.4959,4264.6,4263.2,4.7259]
[1757084661149,1.4959,4264.1,4263.3,0.267]
[1757084661441,3.2078,4264.0,4263.4,0.267]
[1757084661642,1.4959,4263.5,4263.4,0.267]
[1757084661845,0.5969,4263.6,4263.3,0.267]
[1757084662147,4.7037,4263.4,4263.3,0.267]
[1757084662343,1.4959,4263.4,4262.3,32.37]
[1757084662545,2.0928,4264.2,4262.7,1.5181]
[1757084662736,1.4959,4264.2,4262.7,0.42224]
[1757084662942,1.4959,4264.2,4263.3,3.2078]
[1757084663142,1.4959,4264.2,4263.4,0.267]
[1757084663344,1.4959,4265.0,4264.0,3.2078]
[1757084663546,1.4959,4265.0,4264.4,3.2078]
[1757084663740,1.4959,4265.0,4264.5,1.7841]
[1757084664046,1.4959,4265.3,4264.5,0.266]
[1757084664239,1.4959,4265.3,4264.9,3.2078]
[1757084664440,3.2078,4265.6,4265.0,0.266]
[1757084664645,1.4959,4265.9,4265.0,0.266]
[1757084664841,1.4959,4265.9,4265.4,1.5181]
[1757084665046,0.5969,4266.5,4265.6,4.7259]
[1757084665047,1.4959,4266.5,4265.6,4.7259]
[1757084665247,1.4959,4267.1,4266.2,3.2078]
[1757084665547,1.4959,4267.1,4266.3,0.267]
[1757084665849,1.4959,4266.7,4266.4,0.266]
[1757084666046,1.4959,4266.6,4266.4,0.266]
[1757084666241,1.4959,4266.5,4266.4,0.266]
[1757084666439,3.2078,4267.6,4266.4,0.266]
[1757084666440,2.0928,4267.2,4266.4,0.266]
[1757084666746,1.4959,4267.2,4266.4,0.266]
[1757084667340,1.4959,4266.8,4265.4,1.5181]
[1757084667546,1.4959,4266.1,4265.2,3.2078]
[1757084667841,3.2078,4265.8,4265.3,0.266]
[1757084668047,3.2078,4266.7,4265.7,3.2078]
[1757084668247,3.2078,4266.7,4265.8,1.7841]
[1757084668746,1.4959,4266.8,4265.7,3.2078]
[1757084668941,1.4959,4266.8,4265.9,0.266]
[1757084669143,3.2078,4266.4,4265.7,3.2078]
[1757084669346,1.4959,4266.4,4265.8,0.266]
[1757084669546,3.2078,4266.9,4265.8,4.87412229]
[1757084670044,1.4959,4267.1,4266.3,4.7259]
[1757084670249,1.4959,4267.1,4266.4,0.266]
[1757084670648,1.4959,4267.1,4266.3,4.7259]
[1757084670851,1.4959,4267.1,4266.4,0.266]
[1757084671348,1.4959,4267.1,4266.3,4.7259]
[1757084671349,1.4959,4267.1,4266.3,3.2078]
[1757084671550,1.4959,4267.1,4266.4,0.266]
[1757084671944,1.4959,4267.1,4266.5,0.266]
[1757084672145,3.2078,4266.8,4265.7,3.2078]
[1757084672347,1.4959,4266.7,4265.7,3.2078]
[1757084672547,1.4959,4266.7,4265.8,0.266]
[1757084672742,0.5969,4266.6,4265.9,0.266]
[1757084672946,1.4959,4266.2,4265.0,1.5181]
[1757084673149,0.42201,4265.1,4265.0,1.5181]
[1757084673350,0.42201,4265.1,4265.0,1.7841]
[1757084674453,0.42203,4264.9,4264.5,1.5181]
[1757084674648,0.42201,4265.1,4265.0,1.5181]
[1757084674848,0.42201,4265.1,4265.0,0.266]
[1757084675049,0.42205,4264.6,4264.5,1.5181]
[1757084675250,0.42205,4264.7,4264.6,1.5181]
[1757084675448,0.42203,4264.9,4264.6,1.5181]
[1757084675648,1.05495,4265.4,4264.6,1.5181]
[1757084675854,1.0549,4265.6,4265.1,1.5181]
[1757084676051,1.0549,4265.6,4264.7,3.09516239]
[1757084676052,2.10923,4266.8,4265.5,3.2078]
[1757084676253,0.42196,4265.6,4265.5,3.2078]
[1757084676556,0.42193,4265.9,4265.5,4.9919]
[1757084676755,0.42191,4266.1,4265.7,1.5181]
[1757084676951,0.42191,4266.1,4266.0,4.7259]
[1757084677154,1.05463,4266.8,4266.0,4.7259]
[1757084677352,1.05458,4267.0,4266.3,3.2078]
[1757084677353,0.42182,4267.0,4266.3,3.2078]
[1757084677558,0.42182,4267.0,4266.0,3.0338744]
[1757084677559,1.4959,4268.2,4267.0,1.5181]
[1757084677757,1.4959,4268.2,4268.1,3.2078]
[1757084678055,2.55011,4268.4,4268.1,3.4738]
[1757084678253,1.4959,4268.3,4268.1,3.4738]
[1757084678562,0.17,4268.9,4268.2,7.04502953]
[1757084678746,0.17,4268.9,4268.8,4.7259]
[1757084678952,1.58381174,4270.3,4269.1,0.6852]
[1757084679151,1.58381174,4270.3,4270.2,3.893]
[1757084679449,1.58381174,4270.3,4270.2,3.4738]
[1757084680062,1.4959,4271.6,4270.2,11.74310842]
[1757084680255,0.5969,4272.0,4271.1,3.2078]
[1757084680256,1.4959,4271.9,4271.1,3.2078]
[1757084680453,1.4959,4271.9,4271.8,3.2078]
[1757084680651,1.92020349,4272.4,4272.2,0.4213]
[1757084680953,1.4959,4273.6,4272.3,10.52976178]
[1757084681155,4.1573904,4273.1,4273.0,3.2078]
[1757084681354,4.1573904,4273.1,4273.0,3.4738]
[1757084681554,2.6614904,4273.1,4273.0,10.513811]
[1757084681750,3.80212914,4274.1,4273.1,0.42122]
[1757084681955,5.29802914,4274.1,4274.0,3.2078]
[1757084682158,3.80212914,4274.1,4274.0,3.4738]
[1757084682352,5.29802914,4274.1,4274.0,3.4738]
[1757084682556,5.29802914,4274.1,4274.0,3.2078]
[1757084682767,3.2078,4275.2,4274.0,3.2078]
[1757084682768,1.4959,4275.1,4274.1,0.42112]
[1757084682958,3.2078,4276.9,4274.6,3.2078]
[1757084683261,1.4959,4275.5,4275.0,3.2078]
[1757084683458,1.4959,4275.5,4275.1,0.266]
[1757084683756,1.4959,4275.5,4275.0,3.2078]
[1757084683963,1.4959,4275.3,4275.0,0.266]
[1757084684158,3.2078,4275.9,4275.0,0.266]
[1757084684562,1.4959,4275.5,4275.1,3.2078]
[1757084685461,1.4959,4275.5,4275.2,0.266]
[1757084685657,3.2078,4275.9,4275.2,0.266]
[1757084686063,0.421,4275.3,4275.2,0.266]
[1757084686259,1.9169,4275.3,4275.2,0.266]
[1757084686458,1.91697,4274.6,4274.5,3.2078]
[1757084686652,1.91697,4274.6,4274.5,3.4738]
[1757084686862,1.4959,4274.6,4274.5,3.4738]
[1757084687061,1.4959,4274.6,4274.5,3.2078]
[1757084687266,1.4959,4274.6,4274.5,3.4738]
[1757084688562,1.4959,4274.6,4274.5,0.265]
[1757084688762,4.7037,4274.6,4274.5,0.265]
[1757084689063,1.4959,4274.6,4274.5,0.265]
[1757084689560,4.0,4274.6,4273.6,3.2078]
[1757084689763,3.2078,4274.1,4273.1,3.2078]
[1757084689965,1.4814,4274.0,4273.2,0.265]
[1757084690159,3.2078,4274.1,4273.1,3.2078]
[1757084690160,0.6175,4273.5,4273.1,3.2078]
[1757084690467,3.8253,4273.5,4273.2,0.265]
[1757084690666,1.4814,4273.3,4273.2,0.265]
[1757084690859,1.4814,4273.4,4272.8,0.265]
[1757084691866,1.4814,4273.4,4272.8,3.4728]
[1757084692362,0.6175,4273.5,4272.8,3.2078]
[1757084692560,1.4814,4273.4,4272.9,0.265]
[1757084692755,3.2078,4273.0,4272.6,32.346]
[1757084692961,1.4814,4272.8,4272.7,0.265]
[1757084693165,1.4814,4272.9,4272.7,0.265]
[1757084693464,1.4814,4272.8,4272.7,0.265]
[1757084693666,3.2078,4273.0,4271.5,3.2078]
[1757084693667,1.4814,4272.5,4271.5,3.2078]
[1757084693867,1.4814,4272.5,4271.6,0.265]
[1757084694069,1.4814,4272.5,4271.7,0.265]
[1757084694368,1.4814,4272.5,4271.7,3.30876025]
[1757084694664,1.4814,4273.4,4272.0,3.732]
[1757084694867,1.4814,4273.4,4272.5,3.2078]
[1757084695068,1.4814,4273.4,4272.6,0.265]
[1757084696674,1.4814,4273.4,4273.1,3.2078]
[1757084696966,1.4814,4274.0,4273.2,0.265]
[1757084697269,1.4814,4274.0,4273.3,0.265]
[1757084697565,3.2078,4274.7,4273.6,3.2078]
[1757084697865,3.2078,4274.7,4273.8,3.2078]
[1757084698071,1.4814,4274.1,4273.3,3.2078]
[1757084698366,1.4814,4274.1,4273.4,0.265]
[1757084698558,1.4814,4274.1,4273.5,0.265]
[1757084698965,3.2078,4274.8,4273.3,3.2078]
[1757084699259,1.4814,4273.7,4273.3,3.2078]
[1757084699463,0.6175,4273.8,4273.4,0.265]
[1757084699664,0.6175,4273.8,4273.5,0.265]
[1757084699865,1.4814,4273.7,4273.5,0.265]
[1757084700163,1.4814,4273.7,4273.6,0.265]
[1757084700670,1.4814,4273.6,4272.8,3.2078]
[1757084700868,0.6175,4273.2,4272.9,0.265]
[1757084701165,1.4814,4273.1,4272.9,0.265]
[1757084701361,1.4814,4273.1,4272.8,3.2078]
[1757084701563,1.4814,4273.1,4272.8,3.4728]
[1757084701765,0.6175,4273.2,4272.8,3.2078]
[1757084701967,1.4814,4273.1,4272.8,3.2078]
[1757084702359,1.4814,4273.1,4272.9,0.265]
[1757084702560,1.4814,4273.1,4271.7,0.81831336]
[1757084702762,0.6175,4273.2,4271.5,4.43527004]
[1757084702763,0.6175,4272.0,4271.5,1.22747004]
[1757084702968,1.4814,4271.9,4271.5,1.22747004]
[1757084703169,1.4814,4271.9,4271.4,0.8227316]
[1757084703369,1.4814,4271.7,4271.4,0.8227316]
[1757084703568,3.8253,4272.0,4271.4,0.8227316]
[1757084703764,3.2078,4271.8,4271.4,2.4110316]
[1757084703969,2.0989,4272.6,4271.5,1.5883]
[1757084704172,1.4814,4272.4,4271.4,0.8227316]
[1757084704365,1.4814,4271.9,4271.4,1.0877316]
[1757084704567,0.6175,4272.0,4271.4,1.0877316]
[1757084704770,0.6175,4272.6,4271.8,3.2078]
[1757084704967,0.6175,4272.6,4272.0,3.2078]
[1757084705172,0.6175,4272.6,4271.4,0.8227316]
[1757084705173,1.4814,4271.9,4271.4,0.8227316]
[1757084705473,1.4814,4271.5,4271.4,1.0877316]
[1757084705667,0.6175,4272.0,4271.4,1.0877316]
[1757084705869,1.4814,4272.2,4271.7,3.2078]
[1757084706075,1.4814,4272.5,4271.8,0.265]
[1757084706777,4.6892,4272.5,4271.9,0.265]
[1757084706974,4.6892,4272.5,4271.4,0.8227316]
[1757084707275,3.2078,4271.7,4271.5,0.265]
[1757084707474,1.4814,4271.6,4271.4,0.8227316]
[1757084707673,0.6175,4271.4,4271.1,1.22747004]
[1757084708176,1.4814,4271.3,4271.1,1.22747004]
[1757084708373,4.6892,4271.2,4270.6,1.65237086]
[1757084708569,1.4814,4271.3,4270.7,0.265]
[1757084708765,1.4814,4270.7,4270.6,1.65237086]
[1757084709674,5.4814,4270.7,4270.1,2.07110692]
[1757084709976,3.2078,4270.8,4270.2,0.265]
[1757084710272,3.2078,4271.5,4270.3,1.5883]
[1757084710472,3.2078,4271.5,4270.9,1.5883]
[1757084710777,3.2078,4272.6,4271.1,1.5883]
[1757084710974,3.2078,4272.0,4271.2,0.265]
[1757084711276,3.2078,4272.5,4271.3,3.2078]
[1757084711476,3.2078,4272.0,4271.3,3.2078]
[1757084711867,3.2078,4272.0,4271.4,0.8475]
[1757084712073,3.2078,4271.9,4271.4,2.1708]
[1757084712269,3.2078,4271.9,4271.5,0.265]
[1757084712778,0.3532,4271.8,4271.5,0.265]
[1757084713076,3.2078,4271.9,4271.0,0.265]
[1757084713273,0.3532,4273.8,4271.1,1.5883]
[1757084713274,3.2078,4272.6,4271.1,1.5883]
[1757084713476,3.2078,4272.6,4271.8,1.5883]
[1757084713673,3.2078,4272.6,4272.0,0.5825]
[1757084713979,0.265,4273.2,4272.1,1.5883]
[1757084714476,0.3532,4272.6,4272.2,0.265]
[1757084714675,3.2078,4273.4,4272.3,1.5883]
[1757084714870,3.561,4274.0,4273.0,1.5883]
[1757084715069,3.2078,4274.5,4273.3,1.5883]
[1757084715270,3.2078,4274.5,4273.8,2.1708]
[1757084715473,3.2078,4275.0,4274.0,1.5883]
[1757084715672,3.2078,4275.5,4274.5,1.5883]
[1757084715872,3.2078,4275.5,4274.6,1.8533]
[1757084716172,3.561,4276.0,4275.1,3.2078]
[1757084716374,3.2078,4276.0,4275.2,0.265]
[1757084716882,3.2078,4276.0,4275.3,1.5883]
[1757084717680,3.2078,4276.0,4275.6,0.5825]
[1757084717979,3.2078,4276.0,4275.8,1.5883]
[1757084718174,3.2078,4276.0,4275.2,1.5693]
[1757084718478,3.2078,4276.0,4275.4,1.5693]
[1757084718680,1.18599183,4276.3,4275.8,1.5693]
[1757084718878,1.18599183,4276.3,4276.0,1.5693]
[1757084719076,1.18599183,4276.3,4275.7,3.4728]
[1757084719882,1.18599183,4276.3,4275.8,1.5693]
[1757084720382,1.18599183,4276.3,4276.2,3.2078]
[1757084720676,1.18599183,4276.3,4276.2,5.6394]
[1757084720878,1.57519984,4276.8,4276.2,5.6394]
[1757084721078,1.57519984,4276.8,4276.3,1.5693]
[1757084721273,1.57519984,4276.8,4276.2,4.0701]
[1757084721274,1.57519984,4276.8,4276.7,4.7771]
[1757084721473,3.2078,4277.9,4276.9,1.5693]
[1757084721680,3.2078,4278.2,4277.2,3.2078]
[1757084721880,1.5116,4278.1,4277.3,0.265]
[1757084722573,1.5116,4278.1,4277.3,1.8343]
[1757084722774,1.5116,4278.1,4276.7,1.5693]
[1757084723069,1.5116,4277.9,4276.8,0.265]
[1757084723274,3.2078,4277.1,4276.1,1.5693]
[1757084723474,1.5116,4277.0,4276.3,3.2078]
[1757084723776,1.5116,4277.0,4276.3,1.5693]
[1757084723981,3.2078,4276.8,4276.4,0.265]
[1757084724183,1.5116,4276.7,4276.5,0.265]
[1757084724569,1.5116,4276.6,4276.5,0.265]
[1757084724777,1.5116,4276.6,4275.6,1.5693]
[1757084724983,3.2078,4276.4,4275.7,0.265]
[1757084725373,3.2078,4276.4,4275.8,1.5693]
[1757084725578,1.5116,4277.1,4275.7,0.265]
[1757084725579,1.5116,4277.1,4276.2,1.5693]
[1757084725781,4.7194,4277.7,4276.3,0.265]
[1757084725984,4.7194,4277.7,4276.8,3.2078]
[1757084726184,4.7194,4277.7,4276.9,0.265]
[1757084726381,1.5116,4277.7,4276.9,0.265]
[1757084726690,3.2078,4278.2,4277.4,3.2078]
[1757084726871,0.17235052,4279.1,4277.6,1.5693]
[1757084727076,4.7194,4279.2,4277.9,3.2078]
[1757084727276,1.5116,4279.2,4278.1,1.5693]
[1757084727478,1.5116,4279.2,4278.8,3.2078]
[1757084727681,1.5116,4279.2,4278.8,5.0421]
[1757084727877,1.5116,4280.0,4278.8,5.0421]
[1757084728076,1.5116,4280.0,4278.8,9.0421]
[1757084728376,3.2078,4280.3,4278.9,1.5693]
[1757084728582,3.2078,4280.3,4279.4,1.5693]
[1757084728783,1.5116,4280.2,4279.5,0.265]
[1757084729082,3.2078,4279.6,4279.1,0.265]
[1757084729278,1.5116,4279.4,4279.1,0.265]
[1757084729484,3.2078,4279.6,4278.5,1.5693]
[1757084729678,4.7194,4279.6,4278.6,0.265]
[1757084730183,1.5116,4280.2,4279.0,1.5693]
[1757084730378,1.5116,4280.2,4279.1,0.265]
[1757084730579,3.2078,4280.6,4279.5,1.5693]
[1757084730775,8.65739961,4282.1,4280.2,1.5693]
[1757084730981,1.5116,4281.7,4280.8,3.2078]
[1757084731181,1.5116,4281.7,4281.0,1.5693]
[1757084731386,1.5116,4281.7,4281.1,0.265]
[1757084731582,1.5116,4281.7,4281.2,1.5693]
[1757084731789,3.2078,4281.6,4280.5,1.5693]
[1757084732080,3.2078,4281.6,4280.6,0.265]
[1757084732276,1.5116,4281.7,4280.6,0.265]
[1757084732485,5.44959961,4282.1,4281.0,1.5693]
[1757084732684,4.26819973,4281.3,4281.1,0.265]
[1757084732990,2.75659973,4281.3,4281.1,1.8343]
[1757084733184,2.75659973,4281.3,4280.9,3.2078]
[1757084733392,2.75659973,4281.3,4281.2,1.8343]
[1757084733683,2.75659973,4281.3,4281.2,1.5693]
[1757084733891,8.26819973,4281.3,4280.0,1.5693]
[1757084734077,4.26819973,4281.3,4280.1,0.265]
[1757084734283,2.75659973,4281.3,4280.1,0.265]
[1757084734587,2.75659973,4281.3,4281.0,1.5693]
[1757084734885,2.75659973,4281.3,4281.1,0.265]
[1757084735086,2.75659973,4281.3,4281.2,1.8343]
[1757084735284,4.7194,4281.8,4280.9,3.2078]
[1757084735481,3.2078,4281.8,4280.0,3.2078]
[1757084735680,3.2078,4280.8,4280.0,3.2078]
[1757084735880,0.265,4281.6,4280.1,0.265]
[1757084736184,3.2078,4280.2,4279.2,1.5693]
[1757084736493,1.5116,4281.2,4280.2,1.5693]
[1757084736684,1.5116,4281.2,4280.3,0.265]
[1757084736883,1.5116,4281.2,4280.2,1.5693]
[1757084737191,2.1182,4281.2,4280.3,0.265]
[1757084737387,1.5116,4281.2,4280.4,0.265]
[1757084737687,3.2078,4281.3,4280.5,1.5693]
[1757084737888,3.2078,4281.3,4280.6,0.265]
[1757084738193,1.5116,4281.2,4280.6,0.265]
[1757084738682,1.5116,4281.2,4280.7,0.265]
[1757084738882,3.2078,4281.3,4280.7,0.265]
[1757084738883,1.5116,4281.1,4280.7,0.265]
[1757084739082,3.2078,4281.3,4280.7,0.265]
[1757084739283,4.7194,4281.3,4280.1,3.2078]
[1757084739588,4.7194,4281.3,4280.3,1.5693]
[1757084739790,4.7194,4280.4,4279.1,1.234251]
[1757084739991,3.2078,4279.2,4279.1,1.234251]
[1757084740191,3.2078,4279.2,4279.1,2.803551]
[1757084740391,3.2078,4279.2,4279.1,3.068551]
[1757084740584,3.2078,4279.2,4279.1,1.234251]
[1757084741085,3.2078,4279.2,4279.0,1.8343]
[1757084741282,3.2078,4279.7,4279.1,1.5693]
[1757084741487,3.2078,4279.7,4279.0,0.265]
[1757084742286,3.2078,4279.7,4279.1,0.5973]
[1757084742486,3.2078,4279.7,4279.1,2.1666]
[1757084742687,3.2078,4279.7,4279.2,0.265]
[1757084742890,3.2078,4279.7,4279.2,1.8343]
[1757084743189,3.2078,4280.2,4279.3,1.5693]
[1757084743994,3.2078,4279.7,4279.4,0.265]
[1757084744391,3.2078,4279.7,4279.4,1.8343]
[1757084744587,3.4819,4279.7,4279.4,0.265]
[1757084744792,3.2078,4279.7,4279.2,0.265]
[1757084744989,3.4819,4279.7,4278.7,0.82120843]
[1757084745290,3.2078,4279.2,4278.7,0.54710843]
[1757084745493,3.4728,4279.2,4278.7,0.54710843]
[1757084745695,4.0,4279.1,4278.7,0.54710843]
[1757084745896,3.2078,4279.2,4278.7,0.54710843]
[1757084746091,3.2078,4279.2,4278.8,1.5693]
[1757084746497,3.2078,4279.2,4278.7,0.54710843]
[1757084746693,3.2078,4279.2,4278.8,0.265]
[1757084747091,3.2078,4279.2,4278.9,1.5693]
[1757084747496,3.2078,4279.2,4278.8,0.265]
[1757084747801,3.2078,4279.2,4278.9,1.5693]
[1757084748098,3.2078,4279.7,4278.9,1.5693]
[1757084749292,3.4728,4280.2,4278.9,1.5693]
[1757084750201,3.2078,4280.2,4279.3,1.5231]
[1757084750394,3.2078,4280.2,4279.5,1.5231]
[1757084750597,3.2078,4280.2,4279.8,0.6029]
[1757084750898,3.2078,4280.8,4280.4,0.6029]
[1757084751096,0.265,4281.3,4280.4,0.6029]
[1757084751097,3.2078,4281.4,4280.5,1.7881]
[1757084751804,3.2078,4282.1,4281.1,1.5231]
[1757084751992,3.2078,4282.1,4281.2,0.265]
[1757084752192,3.2078,4282.1,4281.3,1.5231]
[1757084752698,3.2078,4281.4,4281.1,0.265]
[1757084752902,3.2078,4281.4,4280.7,0.265]
[1757084753101,3.2078,4281.4,4280.8,1.5231]
[1757084753297,3.2078,4282.0,4280.8,1.5231]
[1757084753497,3.2078,4281.5,4280.8,1.5231]
[1757084754001,3.2078,4282.0,4280.8,1.5231]
[1757084754796,3.2078,4281.5,4280.8,1.5231]
[1757084754995,3.2078,4282.0,4280.8,1.5231]
[1757084757001,0.44032685,4282.7,4281.2,3.2078]
[1757084757002,3.2078,4282.5,4281.2,3.2078]
[1757084757301,3.2078,4282.0,4281.4,1.5231]
[1757084757904,3.2078,4282.0,4281.6,0.6029]
[1757084758107,3.2078,4282.6,4281.7,1.5231]
[1757084758308,3.2078,4282.6,4281.9,1.5231]
[1757084758806,3.2078,4282.7,4281.9,1.5231]
[1757084759901,3.2078,4282.7,4282.0,1.234251]
[1757084760298,3.2078,4282.2,4282.0,1.234251]
[1757084760704,4.0,4282.1,4282.0,1.234251]
[1757084761807,3.2078,4282.2,4282.0,1.234251]
[1757084762300,3.2078,4282.2,4282.1,1.5231]
[1757084762505,3.2078,4282.2,4282.0,1.234251]
[1757084762703,3.2078,4282.8,4282.1,1.7871]
[1757084763709,3.2078,4283.3,4282.1,1.7871]
[1757084764604,3.2078,4283.3,4282.3,3.2078]
[1757084764808,3.2078,4283.3,4282.5,0.6029]
[1757084765004,3.2078,4283.3,4282.6,0.264]
[1757084765510,3.2078,4283.3,4282.3,0.264]
[1757084766009,0.23349001,4283.2,4282.1,3.2078]
[1757084766207,0.23349001,4283.2,4282.1,0.264]
[1757084766208,3.2078,4282.8,4282.1,0.264]
[1757084767007,3.2078,4282.8,4282.0,1.234251]
[1757084767204,3.2078,4282.8,4282.0,1.498251]
[1757084767401,3.2078,4282.8,4282.0,2.101151]
[1757084767808,3.2078,4282.8,4282.1,1.5231]
[1757084768506,3.2078,4282.8,4282.0,1.234251]
[1757084768715,3.2078,4282.3,4282.0,1.234251]
[1757084769513,3.2078,4282.3,4281.9,1.234251]
[1757084769907,3.2078,4282.9,4282.0,2.126]
[1757084770704,3.2078,4282.4,4282.0,2.126]
[1757084771213,3.2078,4282.4,4281.9,1.234251]
[1757084772214,3.4718,4282.4,4281.9,1.234251]
[1757084772513,3.4718,4282.4,4281.4,1.6669911]
[1757084772514,4.27419041,4282.3,4281.4,1.6669911]
[1757084772720,3.2078,4281.5,4280.5,2.86679693]
[1757084773016,3.2078,4281.0,4280.5,2.86679693]
[1757084773212,3.4718,4281.0,4280.5,2.86679693]
[1757084773412,7.4718,4281.0,4280.5,2.86679693]
[1757084773610,3.2078,4281.0,4280.5,2.86679693]
[1757084773919,3.4718,4281.0,4280.5,2.86679693]
[1757084774115,3.4718,4281.0,4280.5,4.38989693]
[1757084774414,4.0,4280.9,4280.5,2.86679693]
[1757084774611,3.64360316,4281.0,4280.5,2.86679693]
[1757084774810,0.264,4280.9,4280.5,2.86679693]
[1757084775210,3.2078,4281.0,4280.6,1.5231]
[1757084775411,0.264,4280.9,4280.5,2.86679693]
[1757084775613,0.264,4280.9,4280.6,1.5231]
[1757084775812,0.264,4280.9,4280.5,2.86679693]
[1757084776211,4.23361,4280.8,4279.5,2.126]
[1757084776408,3.2078,4279.6,4279.0,2.126]
[1757084776923,3.2078,4279.6,4279.5,2.126]
[1757084777117,3.2078,4279.6,4279.5,1.5231]
[1757084777913,7.2078,4279.6,4278.9,0.264]
[1757084778108,3.2078,4279.1,4278.5,2.0582]
[1757084778309,3.4718,4279.1,4278.0,8.18569267]
[1757084778509,3.2078,4278.5,4278.0,3.52259267]
[1757084778713,3.4718,4278.5,4278.0,3.52259267]
[1757084779021,0.264,4279.0,4278.3,1.4553]
[1757084779319,3.2078,4279.1,4278.4,1.4553]
[1757084779523,3.2078,4279.1,4279.0,2.0652]
[1757084779720,1.5932,4279.1,4279.0,2.0652]
[1757084780024,3.2078,4280.4,4279.1,1.4553]
[1757084780321,1.4633,4280.3,4279.3,3.2078]
[1757084780519,1.4633,4280.1,4279.1,1.4553]
[1757084780720,1.4633,4279.8,4278.6,0.264]
[1757084780914,1.4633,4279.6,4278.7,3.2078]
[1757084781226,3.2078,4279.9,4278.8,1.4553]
[1757084781416,0.264,4279.9,4279.4,1.4553]
[1757084781617,0.264,4280.1,4279.5,0.6099]
[1757084782218,3.2078,4280.4,4279.5,0.6099]
[1757084782419,3.2078,4280.4,4279.7,1.4553]
[1757084782622,0.264,4280.6,4279.7,0.42056]
[1757084782925,3.2078,4280.9,4279.8,1.4553]
[1757084782926,0.264,4280.7,4279.8,1.4553]
[1757084783123,3.2078,4280.5,4279.8,1.4553]
[1757084783320,3.2078,4280.5,4279.5,0.8739]
[1757084783321,3.2078,4280.0,4279.6,1.4553]
[1757084783523,3.2078,4280.0,4279.5,0.264]
[1757084783920,3.2078,4280.0,4279.3,3.2078]
[1757084784115,3.2078,4280.0,4279.6,1.4553]
[1757084784323,3.2078,4280.0,4279.5,0.6099]
[1757084784720,3.2078,4280.0,4279.6,1.4553]
[1757084784923,3.2078,4280.0,4279.3,3.2078]
[1757084785322,3.2078,4280.5,4279.6,1.4553]
[1757084785522,0.264,4280.2,4279.6,1.4553]
[1757084785725,3.2078,4280.5,4279.6,1.4553]
[1757084785726,0.264,4280.4,4279.6,1.4553]
[1757084785924,0.264,4280.4,4279.8,1.4553]
[1757084787029,3.2078,4281.4,4280.6,1.4553]
[1757084788130,32.25,4283.6,4280.5,0.8739]
[1757084788131,3.2078,4282.0,4280.9,1.4553]
[1757084788425,3.2078,4282.0,4281.1,1.4553]
[1757084788725,3.2078,4281.9,4281.6,1.4553]
[1757084789025,3.2078,4281.9,4281.5,0.6099]
[1757084789230,3.2078,4282.6,4281.6,1.4553]
[1757084789429,3.2078,4282.6,4281.8,3.2078]
[1757084789724,0.264,4283.0,4282.1,1.4553]
[1757084789925,3.2078,4282.7,4282.1,1.4553]
[1757084790126,3.2078,4282.7,4282.0,0.8739]
[1757084790127,3.2078,4283.3,4282.6,1.4553]
[1757084790325,0.264,4283.8,4283.1,1.4553]
[1757084790730,3.2078,4283.9,4283.1,1.4553]
[1757084790925,3.2078,4283.9,4283.3,1.4553]